bitfinex/quotes_BTCUSD_20220115
["timestamp","ask_amount","ask_price","bid_price","bid_amount"]
[1642211008565,0.67819866,42920.0,42919.0,0.23]
[1642211008765,0.67819866,42920.0,42919.0,0.10999999]
[1642211008967,0.30429201,42915.0,42911.0,0.00025875]
[1642211010719,0.01000002,42919.0,42914.0,0.05825323]
[1642211011815,0.25655396,42917.0,42914.0,0.05825323]
[1642211012219,0.25655396,42917.0,42911.0,0.00025875]
[1642211012418,0.30479509,42916.0,42911.0,0.00025875]
[1642211012820,0.00123625,42914.0,42911.0,0.00025875]
[1642211013019,0.422703,42913.0,42911.0,0.00025875]
[1642211013223,2.4126511,42912.0,42911.0,0.00025875]
[1642211013418,2.7891541,42912.0,42911.0,0.00025875]
[1642211013617,0.6891541,42912.0,42911.0,0.00025875]
[1642211014018,1.2891541,42912.0,42911.0,0.00025875]
[1642211014259,0.6891541,42912.0,42911.0,0.00025875]
[1642211014861,0.376503,42912.0,42911.0,0.00025875]
[1642211015062,0.66206327,42912.0,42911.0,0.00025875]
[1642211015460,0.66206327,42912.0,42911.0,0.23025875]
[1642211016063,0.0642,42913.0,42911.0,0.23025875]
[1642211016665,0.0462,42913.0,42911.0,0.23025875]
[1642211017666,0.0462,42913.0,42911.0,0.28851494]
[1642211018710,0.0462,42913.0,42911.0,0.23025875]
[1642211020412,2.03529558,42912.0,42911.0,0.23025875]
[1642211020614,0.66179858,42912.0,42911.0,0.23025875]
[1642211020811,0.66049927,42912.0,42911.0,0.23025875]
[1642211021016,0.376503,42912.0,42911.0,0.23025875]
[1642211021213,0.67819003,42912.0,42911.0,0.23025875]
[1642211021413,0.70119003,42912.0,42911.0,0.23025875]
[1642211022259,0.023,42912.0,42911.0,0.23025875]
[1642211022658,0.0462,42913.0,42911.0,0.23025875]
[1642211023462,0.0462,42913.0,42912.0,0.376503]
[1642211024160,0.0462,42913.0,42911.0,0.23025875]
[1642211024562,0.0462,42913.0,42912.0,0.376503]
[1642211025908,0.0462,42913.0,42911.0,0.23025875]
[1642211026316,0.0462,42913.0,42912.0,0.376503]
[1642211026511,0.0462,42913.0,42911.0,0.23025875]
[1642211027113,1.65,42912.0,42911.0,0.23025875]
[1642211027412,0.376503,42912.0,42911.0,0.23025875]
[1642211028011,0.33787267,42916.0,42911.0,0.23025875]
[1642211028215,0.376503,42915.0,42911.0,0.23025875]
[1642211028412,0.00129917,42914.0,42911.0,0.23025875]
[1642211028614,0.376503,42913.0,42911.0,0.23025875]
[1642211028816,2.42432166,42912.0,42911.0,0.23025875]
[1642211029014,1.45082466,42912.0,42911.0,0.23025875]
[1642211029261,1.42635176,42912.0,42911.0,0.23025875]
[1642211029461,1.44735176,42912.0,42911.0,0.23025875]
[1642211031366,0.376503,42914.0,42911.0,0.23025875]
[1642211033612,0.024,42915.0,42911.0,0.23025875]
[1642211033813,0.024,42915.0,42912.0,0.29582877]
[1642211035320,0.25655396,42917.0,42912.0,0.29582877]
[1642211035815,0.00605508,42918.0,42912.0,0.29582877]
[1642211036017,0.00605508,42918.0,42913.0,0.05825696]
[1642211037872,0.00605508,42918.0,42915.0,0.2459026]
[1642211038075,0.01000002,42919.0,42916.0,0.11649542]
[1642211038273,0.66208224,42922.0,42916.0,0.05824742]
[1642211038873,0.9962,42925.0,42916.0,0.05824742]
[1642211039075,0.9962,42925.0,42923.0,0.31490913]
[1642211039278,0.62668224,42926.0,42923.0,0.31490913]
[1642211039674,0.101,42925.0,42921.0,0.39666976]
[1642211040077,0.101,42925.0,42923.0,0.05824121]
[1642211040918,0.0466,42926.0,42923.0,0.05824121]
[1642211041718,0.0466,42926.0,42924.0,0.11647267]
[1642211045569,0.0466,42926.0,42924.0,0.34647267]
[1642211047470,0.0466,42926.0,42924.0,0.23]
[1642211050016,0.65989419,42925.0,42924.0,0.23]
[1642211050611,0.376503,42925.0,42924.0,0.23]
[1642211050811,0.65980976,42925.0,42924.0,0.23]
[1642211051413,0.376503,42925.0,42924.0,0.23]
[1642211051664,0.391503,42925.0,42924.0,0.23]
[1642211051864,0.68103191,42925.0,42924.0,0.23]
[1642211052265,0.72723191,42925.0,42924.0,0.23]
[1642211052769,1.75731415,42925.0,42924.0,0.23]
[1642211052965,1.74231415,42925.0,42924.0,0.23]
[1642211053567,1.30631415,42925.0,42924.0,0.23]
[1642211054167,0.72623191,42925.0,42924.0,0.23]
[1642211054566,1.37623191,42925.0,42924.0,0.23]
[1642211055169,1.39673371,42925.0,42924.0,0.23]
[1642211055611,1.41173371,42925.0,42924.0,0.23]
[1642211055813,0.74123191,42925.0,42924.0,0.23]
[1642211056613,1.14123191,42925.0,42924.0,0.23]
[1642211056813,0.71223191,42925.0,42924.0,0.23]
[1642211057615,0.72723191,42925.0,42924.0,0.23]
[1642211058819,0.71223191,42925.0,42924.0,0.23]
[1642211059663,0.72823191,42925.0,42924.0,0.23]
[1642211060668,0.392503,42925.0,42924.0,0.23]
[1642211060866,0.376503,42925.0,42924.0,0.23]
[1642211061063,0.7171018,42926.0,42924.0,0.23]
[1642211061364,0.7044018,42926.0,42924.0,0.23]
[1642211061564,0.69631794,42926.0,42925.0,0.29100694]
[1642211062464,0.1219,42926.0,42925.0,0.29100694]
[1642211062920,0.0339,42926.0,42925.0,0.29100694]
[1642211064221,0.0339,42926.0,42924.0,0.28823715]
[1642211064424,0.376503,42925.0,42924.0,0.23]
[1642211066027,0.0669,42926.0,42924.0,0.23]
[1642211066223,1.676503,42925.0,42924.0,0.23]
[1642211067665,0.398503,42925.0,42924.0,0.23]
[1642211067869,0.59641794,42925.0,42924.0,0.23]
[1642211068672,0.022,42925.0,42924.0,0.23]
[1642211068867,0.0339,42926.0,42924.0,0.23]
[1642211069571,0.0339,42926.0,42924.0,0.52395447]
[1642211069770,0.0339,42926.0,42925.0,0.29387323]
[1642211069969,0.0339,42926.0,42924.0,0.28823641]
[1642211070920,0.0339,42926.0,42924.0,0.23]
[1642211070921,2.38575895,42925.0,42924.0,0.23]
[1642211071717,2.97417689,42925.0,42924.0,0.23]
[1642211072517,1.22417689,42925.0,42924.0,0.23]
[1642211072921,0.90219351,42925.0,42924.0,0.23]
[1642211073519,0.32777557,42925.0,42924.0,0.23]
[1642211073720,0.62946896,42925.0,42924.0,0.23]
[1642211073924,0.34777557,42925.0,42924.0,0.23]
[1642211074368,0.02,42925.0,42924.0,0.23]
[1642211074969,0.0339,42926.0,42924.0,0.23]
[1642211076368,0.0339,42926.0,42925.0,0.376492]
[1642211077073,0.0339,42926.0,42924.0,0.59920207]
[1642211077470,0.0339,42926.0,42924.0,0.23]
[1642211083763,0.0339,42926.0,42925.0,0.376492]
[1642211084163,0.0339,42926.0,42924.0,0.23]
[1642211084763,0.0339,42926.0,42924.0,0.288236]
[1642211084967,0.0339,42926.0,42924.0,0.23]
[1642211093816,0.0339,42926.0,42924.0,0.225]
[1642211097393,0.4962,42925.0,42924.0,0.225]
[1642211097592,0.0462,42925.0,42924.0,0.225]
[1642211100820,0.0339,42926.0,42924.0,0.225]
[1642211103221,0.0339,42926.0,42925.0,0.376492]
[1642211103423,0.57441794,42930.0,42925.0,0.376492]
[1642211103823,0.67141794,42930.0,42924.0,0.34273435]
[1642211104270,0.097,42930.0,42924.0,0.65818631]
[1642211104571,0.097,42930.0,42928.0,0.30207693]
[1642211104770,0.097,42930.0,42928.0,0.41852797]
[1642211105171,0.82754518,42936.0,42935.0,0.29321851]
[1642211105374,1.20403718,42936.0,42935.0,0.29321851]
[1642211105772,1.03790994,42936.0,42935.0,0.29321851]
[1642211106269,1.03790994,42936.0,42935.0,0.68338412]
[1642211106270,0.61461794,42936.0,42935.0,0.68338412]
[1642211106869,0.087,42936.0,42935.0,0.68338412]
[1642211107072,0.6705018,42939.0,42935.0,0.98875733]
[1642211107270,0.6705018,42939.0,42936.0,0.05822295]
[1642211107934,0.7185018,42939.0,42937.0,0.00122117]
[1642211108428,0.04466653,42939.0,42938.0,0.00126439]
[1642211108629,0.04466653,42939.0,42938.0,0.69210187]
[1642211108827,0.67451542,42941.0,42939.0,1.6]
[1642211109026,0.19067597,42941.0,42940.0,2.248374]
[1642211109226,0.76628777,42947.0,42941.0,1.676464]
[1642211109429,0.63185311,42947.0,42946.0,0.00123702]
[1642211109630,0.39158795,42947.0,42946.0,1.85400402]
[1642211109827,0.045,42947.0,42946.0,0.53961355]
[1642211110032,0.045,42947.0,42946.0,1.05523631]
[1642211110227,0.045,42947.0,42946.0,1.49244727]
[1642211111028,0.39158795,42955.0,42946.0,1.49244727]
[1642211111228,1.3951203,42959.0,42946.0,1.49244727]
[1642211111428,1.3951203,42959.0,42950.0,0.116402]
[1642211111666,0.33317996,42956.0,42950.0,0.116402]
[1642211111872,0.27211635,42955.0,42946.0,0.00423702]
[1642211112069,0.376492,42954.0,42946.0,0.003]
[1642211113068,0.36420013,42952.0,42941.0,0.45704885]
[1642211113768,0.36420013,42952.0,42941.0,0.47904885]
[1642211113970,0.34117996,42956.0,42941.0,0.47904885]
[1642211114168,0.28415742,42955.0,42941.0,0.47904885]
[1642211114568,0.07999907,42948.0,42941.0,0.47904885]
[1642211114769,0.57883981,42946.0,42942.0,0.67524701]
[1642211114969,0.57883981,42946.0,42943.0,0.00123967]
[1642211115174,0.57383981,42946.0,42943.0,0.00123967]
[1642211115615,0.15999814,42948.0,42943.0,0.00123967]
[1642211115818,0.007,42946.0,42943.0,0.00123967]
[1642211116015,0.007,42946.0,42944.0,0.376492]
[1642211117217,0.15999814,42948.0,42944.0,0.606492]
[1642211117417,0.15999814,42948.0,42944.0,0.23]
[1642211117822,0.15999814,42948.0,42944.0,0.243]
[1642211118018,0.15999814,42948.0,42947.0,2.35614441]
[1642211118221,0.15999814,42948.0,42947.0,2.73393037]
[1642211118619,0.15999814,42948.0,42947.0,2.9847542]
[1642211119874,0.15999814,42948.0,42947.0,2.9977542]
[1642211121075,0.15999814,42948.0,42947.0,2.9847542]
[1642211121875,0.15999814,42948.0,42947.0,3.0007542]
[1642211122914,0.15999814,42948.0,42947.0,0.64460979]
[1642211123121,0.15999814,42948.0,42947.0,0.62860979]
[1642211123516,0.6753779,42953.0,42948.0,0.95]
[1642211123719,0.6753779,42953.0,42950.0,0.058192]
[1642211123720,0.57815507,42953.0,42950.0,0.058192]
[1642211123915,0.57815507,42953.0,42951.0,0.49405935]
[1642211124116,0.57815507,42953.0,42951.0,2.54699127]
[1642211124316,0.57815507,42953.0,42952.0,1.8995289]
[1642211124621,0.6753779,42955.0,42954.0,2.34934516]
[1642211124818,0.30370454,42967.0,42954.0,1.89997016]
[1642211124819,0.57909599,42959.0,42954.0,1.89997016]
[1642211125018,0.57909599,42959.0,42958.0,0.00124329]
[1642211126520,0.6753779,42965.0,42959.0,0.058181]
[1642211127772,0.6753779,42964.0,42960.0,0.34217323]
[1642211127969,0.6753779,42964.0,42961.0,0.058183]
[1642211128372,0.6753779,42964.0,42961.0,0.116365]
[1642211128572,0.6753779,42964.0,42958.0,0.234]
[1642211128573,0.376492,42963.0,42958.0,0.234]
[1642211128775,0.314392,42962.0,42958.0,0.234]
[1642211128971,0.376492,42961.0,42958.0,0.234]
[1642211129168,0.376492,42961.0,42958.0,0.23]
[1642211130272,0.6753779,42960.0,42958.0,0.23]
[1642211130519,0.376492,42959.0,42958.0,0.23]
[1642211130720,0.826492,42959.0,42958.0,0.23]
[1642211130924,0.376492,42959.0,42958.0,0.23]
[1642211131120,0.6753779,42959.0,42958.0,0.23]
[1642211132324,0.6753779,42963.0,42958.0,0.606492]
[1642211132525,0.6753779,42963.0,42958.0,0.23]
[1642211132924,0.57996443,42961.0,42958.0,0.23]
[1642211135469,0.57996443,42962.0,42958.0,0.23]
[1642211136171,0.57996443,42961.0,42958.0,0.23]
[1642211137369,0.973677,42961.0,42958.0,0.23]
[1642211138022,0.57996443,42961.0,42958.0,0.23]
[1642211139324,0.57996443,42961.0,42959.0,0.376492]
[1642211139523,0.57996443,42961.0,42958.0,0.23]
[1642211139725,0.57996443,42961.0,42959.0,0.058186]
[1642211140125,0.57996443,42962.0,42959.0,0.058186]
[1642211140624,0.40307854,42961.0,42958.0,0.236]
[1642211141228,0.57996443,42962.0,42958.0,0.294187]
[1642211141672,0.57996443,42961.0,42959.0,0.116359]
[1642211142274,0.58601225,42964.0,42960.0,1.83236884]
[1642211142473,0.58601225,42964.0,42959.0,0.116359]
[1642211142874,0.58601225,42964.0,42958.0,0.410547]
[1642211143174,0.58601225,42964.0,42958.0,0.404547]
[1642211143674,0.58601225,42964.0,42960.0,0.058186]
[1642211143878,0.58601225,42964.0,42961.0,0.058184]
[1642211144474,0.00604782,42964.0,42961.0,0.058184]
[1642211145720,0.00604782,42964.0,42961.0,0.11766083]
[1642211146718,0.00604782,42964.0,42961.0,0.0594777]
[1642211146920,0.00604782,42964.0,42961.0,0.0012937]
[1642211148019,0.00604782,42964.0,42961.0,0.0594767]
[1642211149265,0.00604782,42964.0,42961.0,0.0012937]
[1642211150067,0.58601225,42964.0,42961.0,0.0012937]
[1642211152267,0.00604782,42964.0,42961.0,0.0012937]
[1642211152566,0.00604782,42964.0,42962.0,0.058184]
[1642211153020,0.57996443,42965.0,42962.0,0.058184]
[1642211153523,0.57996443,42966.0,42962.0,0.058184]
[1642211153724,0.57996443,42966.0,42965.0,0.00127992]
[1642211153921,0.57996443,42966.0,42965.0,0.05945892]
[1642211154724,0.57996443,42966.0,42965.0,0.35740326]
[1642211155025,0.57996443,42966.0,42965.0,0.40740326]
[1642211155622,0.57996443,42966.0,42965.0,0.50740326]
[1642211155824,0.57996443,42971.0,42965.0,0.49922426]
[1642211156023,0.57996443,42971.0,42968.0,0.11634]
[1642211156672,0.57996443,42971.0,42969.0,0.05]
[1642211156979,0.64403497,42972.0,42970.0,0.05817]
[1642211157173,0.64403497,42972.0,42967.0,0.216339]
[1642211157376,0.64403497,42972.0,42967.0,0.266339]
[1642211157776,0.25199053,42972.0,42967.0,0.496339]
[1642211158276,0.25199053,42972.0,42967.0,0.346339]
[1642211159977,0.03193873,42973.0,42969.0,0.058171]
[1642211160422,0.03193873,42973.0,42969.0,2.20108445]
[1642211160627,0.03193873,42973.0,42969.0,0.058171]
[1642211161029,0.03193873,42973.0,42969.0,0.11634]
[1642211162226,0.03193873,42973.0,42967.0,0.349339]
[1642211162530,0.03193873,42973.0,42967.0,0.233]
[1642211162726,0.422692,42972.0,42967.0,0.233]
[1642211162926,0.32998056,42971.0,42967.0,0.233]
[1642211163129,0.422692,42970.0,42967.0,0.233]
[1642211163330,0.40651026,42969.0,42967.0,0.23]
[1642211163530,1.67749135,42968.0,42967.0,0.23]
[1642211163728,0.72749135,42968.0,42967.0,0.23]
[1642211164373,0.35099935,42968.0,42967.0,0.23]
[1642211165273,0.0462,42968.0,42967.0,0.23]
[1642211166876,0.32740136,42968.0,42967.0,0.23]
[1642211167277,0.422692,42968.0,42967.0,0.23]
[1642211168937,0.72781009,42968.0,42967.0,0.23]
[1642211169539,1.30685014,42968.0,42967.0,0.23]
[1642211170137,0.72781009,42968.0,42967.0,0.23]
[1642211170343,1.40318799,42968.0,42967.0,0.23]
[1642211171675,1.40288437,42968.0,42967.0,0.23]
[1642211172280,2.45288437,42968.0,42956.0,0.00122849]
[1642211172481,2.45288437,42968.0,42954.0,0.65398119]
[1642211172482,0.1,42965.0,42954.0,0.59579019]
[1642211172680,0.33854007,42957.0,42954.0,0.59579019]
[1642211172882,0.0462,42956.0,42947.0,0.59579019]
[1642211173077,0.00127249,42955.0,42948.0,0.5]
[1642211173279,0.48156857,42954.0,42948.0,0.5]
[1642211174079,0.49756857,42954.0,42948.0,0.1]
[1642211174280,0.376492,42953.0,42948.0,0.1]
[1642211174479,0.0462,42952.0,42948.0,0.1]
[1642211174681,0.31402201,42951.0,42948.0,0.1]
[1642211174885,0.0462,42950.0,42948.0,0.1]
[1642211175181,0.0462,42950.0,42944.0,0.26634062]
[1642211175624,0.0462,42950.0,42945.0,0.376492]
[1642211176826,0.0462,42950.0,42945.0,0.63042229]
[1642211178027,0.0462,42950.0,42945.0,0.65342229]
[1642211178426,0.0462,42950.0,42945.0,0.88342229]
[1642211179276,0.0462,42950.0,42945.0,0.86042229]
[1642211179676,0.0462,42950.0,42945.0,0.91862629]
[1642211180082,0.0462,42950.0,42945.0,1.03462629]
[1642211180478,0.0462,42950.0,42945.0,0.780696]
[1642211180880,0.0462,42950.0,42945.0,0.722492]
[1642211181978,0.0462,42950.0,42945.0,0.606492]
[1642211182180,0.0462,42950.0,42945.0,0.631492]
[1642211182586,0.42432622,42946.0,42945.0,0.631492]
[1642211183426,0.0462,42947.0,42945.0,0.606492]
[1642211184025,0.0462,42947.0,42945.0,0.611492]
[1642211184928,0.28315181,42946.0,42945.0,0.235]
[1642211185325,0.28315181,42946.0,42945.0,0.23]
[1642211185527,0.0462,42947.0,42945.0,0.23]
[1642211185930,0.28562776,42946.0,42945.0,0.23]
[1642211187277,1.38440163,42946.0,42945.0,0.23]
[1642211187476,0.28440163,42946.0,42945.0,0.23]
[1642211188477,0.27940163,42946.0,42945.0,0.23]
[1642211188878,0.0462,42947.0,42945.0,0.23]
[1642211189881,0.28127928,42946.0,42945.0,0.23]
[1642211191521,0.0462,42947.0,42945.0,0.23]
[1642211193029,0.28524543,42946.0,42945.0,0.23]
[1642211193922,0.0462,42947.0,42945.0,0.23]
[1642211194778,1.08465758,42946.0,42945.0,0.23]
[1642211194975,1.16768758,42946.0,42945.0,0.23]
[1642211195176,1.54417958,42946.0,42945.0,0.23]
[1642211195376,1.59037958,42946.0,42945.0,0.23]
[1642211195776,0.79037958,42946.0,42945.0,0.23]
[1642211196176,0.80937958,42946.0,42945.0,0.23]
[1642211196775,0.80437958,42946.0,42945.0,0.23]
[1642211197177,0.72134958,42946.0,42945.0,0.23]
[1642211197378,0.422692,42946.0,42945.0,0.23]
[1642211197576,0.0462,42946.0,42945.0,0.23]
[1642211201124,0.018,42948.0,42945.0,0.23]
[1642211201324,0.0060501,42950.0,42946.0,0.376492]
[1642211203276,0.0060501,42950.0,42946.0,0.434696]
[1642211203578,0.41001704,42953.0,42946.0,0.434696]
[1642211203773,0.41001704,42953.0,42946.0,0.058204]
[1642211204175,0.41601704,42953.0,42946.0,0.083]
[1642211205276,0.46221704,42953.0,42946.0,0.083]
[1642211205525,0.38254158,42952.0,42946.0,0.083]
[1642211205725,0.38254158,42952.0,42945.0,0.23]
[1642211206426,0.0462,42951.0,42945.0,0.23]
[1642211206824,0.0462,42951.0,42945.0,0.82700282]
[1642211207025,0.0462,42951.0,42950.0,0.29373639]
[1642211207225,0.00604958,42952.0,42950.0,0.29373639]
[1642211208526,1.126492,42951.0,42945.0,0.243]
[1642211208730,0.75,42951.0,42945.0,0.243]
[1642211209176,0.00604958,42952.0,42945.0,0.243]
[1642211209376,0.00604958,42952.0,42945.0,0.23]
[1642211209580,0.00604958,42952.0,42948.0,0.3181168]
[1642211209777,0.28889355,42952.0,42948.0,0.3181168]
[1642211209977,0.28889355,42952.0,42945.0,0.23]
[1642211210181,0.00604958,42952.0,42945.0,0.3]
[1642211210379,0.29576703,42952.0,42945.0,0.3]
[1642211210578,0.38960703,42952.0,42945.0,0.3]
[1642211211479,0.38960703,42952.0,42945.0,0.23]
[1642211213934,0.29576703,42952.0,42945.0,0.23]
[1642211218076,0.03278706,42951.0,42945.0,0.23]
[1642211218678,0.03278706,42951.0,42945.0,0.34641]
[1642211218984,0.03278706,42951.0,42945.0,0.23]
[1642211220428,0.42825421,42946.0,42945.0,0.23]
[1642211222032,0.03278706,42951.0,42945.0,0.23]
[1642211224775,0.03278706,42951.0,42946.0,0.38013336]
[1642211224974,0.00604958,42952.0,42946.0,0.51864977]
[1642211225277,0.00604958,42952.0,42951.0,0.26939879]
[1642211226575,0.00604958,42952.0,42951.0,0.376492]
[1642211229525,0.00604958,42952.0,42949.0,0.59778051]
[1642211229726,0.00604958,42952.0,42950.0,0.376492]
[1642211229926,0.00604958,42952.0,42949.0,0.59778051]
[1642211230127,0.41921218,42951.0,42949.0,0.59778051]
[1642211230328,0.41921218,42951.0,42949.0,0.65278051]
[1642211230526,0.0462,42950.0,42949.0,0.65278051]
[1642211230730,0.32813859,42950.0,42949.0,0.055]
[1642211231226,0.0462,42950.0,42949.0,0.055]
[1642211231427,0.0462,42950.0,42947.0,0.59778051]
[1642211231682,0.0462,42950.0,42945.0,0.23]
[1642211232877,0.0462,42950.0,42946.0,0.376492]
[1642211233079,0.0462,42950.0,42945.0,0.52837811]
[1642211233080,0.0462,42950.0,42945.0,0.23]
[1642211234177,0.0462,42950.0,42948.0,0.26364737]
[1642211234382,0.00604958,42952.0,42948.0,0.26364737]
[1642211235177,0.00604958,42952.0,42949.0,0.376492]
[1642211235627,0.00604958,42952.0,42948.0,0.26364737]
[1642211236423,0.00604958,42952.0,42946.0,0.64278051]
[1642211236625,0.00604958,42952.0,42947.0,0.376492]
[1642211236825,0.00604958,42952.0,42946.0,0.70098451]
[1642211237029,0.00604958,42952.0,42947.0,0.376492]
[1642211237226,0.00604958,42952.0,42946.0,0.64278051]
[1642211237725,0.00604958,42952.0,42945.0,0.23]
[1642211241985,0.06000001,42951.0,42945.0,0.23]
[1642211245052,0.06000001,42951.0,42950.0,0.26570939]
[1642211247482,0.06000001,42951.0,42950.0,0.26070939]
[1642211252131,0.06000001,42951.0,42950.0,0.56229133]
[1642211252332,0.06000001,42951.0,42950.0,0.93878333]
[1642211252932,0.002,42957.0,42951.0,2.190025]
[1642211253136,0.57951389,42958.0,42951.0,2.190025]
[1642211253137,0.57951389,42958.0,42952.0,0.91614174]
[1642211253332,0.57951389,42958.0,42955.0,0.05943921]
[1642211253934,0.03,42966.0,42955.0,0.05943921]
[1642211253935,0.9006241,42963.0,42962.0,0.24585825]
[1642211254383,0.57951389,42963.0,42962.0,0.24585825]
[1642211254784,0.48521739,42966.0,42962.0,0.24585825]
[1642211255385,0.29615541,42964.0,42958.0,0.058186]
[1642211255583,0.29615541,42964.0,42957.0,0.3954257]
[1642211256384,0.29615541,42964.0,42958.0,0.62835987]
[1642211256785,0.29615541,42964.0,42958.0,0.32140896]
[1642211257385,0.29615541,42964.0,42958.0,0.61371926]
[1642211258027,0.29615541,42964.0,42958.0,0.32140896]
[1642211258227,0.29615541,42964.0,42958.0,0.61788206]
[1642211258429,0.29615541,42964.0,42958.0,0.62588206]
[1642211258628,0.29615541,42964.0,42958.0,0.3044731]
[1642211258830,0.29615541,42964.0,42958.0,0.008]
[1642211259030,0.422692,42963.0,42958.0,0.008]
[1642211259229,0.31516348,42962.0,42958.0,0.008]
[1642211259430,0.422692,42961.0,42958.0,0.008]
[1642211259629,0.422692,42961.0,42955.0,0.59761269]
[1642211259832,0.422692,42961.0,42953.0,0.69647506]
[1642211259833,0.36011215,42958.0,42953.0,0.69647506]
[1642211260031,0.36011215,42958.0,42952.0,0.59761269]
[1642211260032,0.23452315,42958.0,42952.0,0.59761269]
[1642211260230,0.0462,42957.0,42952.0,0.59761269]
[1642211260435,0.05224996,42957.0,42953.0,0.09]
[1642211260930,0.31567007,42956.0,42953.0,0.09]
[1642211261232,0.0462,42955.0,42953.0,0.09]
[1642211261431,1.51965084,42954.0,42953.0,0.09]
[1642211261679,1.56585084,42954.0,42953.0,0.09]
[1642211261880,0.71585084,42954.0,42953.0,0.09]
[1642211262082,0.422692,42954.0,42953.0,0.09]
[1642211262281,0.71387152,42954.0,42947.0,0.058]
[1642211262580,0.34889895,42950.0,42947.0,0.058]
[1642211262782,0.39509895,42950.0,42947.0,0.058]
[1642211263384,0.26496703,42949.0,42947.0,0.058]
[1642211263587,0.26496703,42949.0,42945.0,0.59774967]
[1642211263784,0.39509895,42950.0,42946.0,0.376492]
[1642211263785,0.0462,42950.0,42946.0,0.376492]
[1642211263985,0.0462,42950.0,42948.0,1.72033747]
[1642211264285,0.0462,42950.0,42949.0,0.09007]
[1642211265096,0.0462,42950.0,42945.0,0.70574967]
[1642211265287,0.0462,42950.0,42946.0,0.376492]
[1642211265747,0.0462,42950.0,42945.0,0.59774967]
[1642211266549,0.016,42952.0,42946.0,0.376492]
[1642211266748,0.016,42952.0,42945.0,0.70174967]
[1642211267150,0.016,42952.0,42950.0,0.29580672]
[1642211267749,0.016,42952.0,42951.0,0.376492]
[1642211268349,0.33051023,42955.0,42951.0,0.376492]
[1642211268551,0.33051023,42955.0,42950.0,0.44200372]
[1642211268951,0.33051023,42955.0,42950.0,0.088]
[1642211269582,0.33051023,42955.0,42949.0,0.116388]
[1642211269783,0.33051023,42955.0,42949.0,0.174587]
[1642211269985,0.33051023,42955.0,42950.0,0.23]
[1642211270386,0.34427613,42952.0,42950.0,0.23]
[1642211280286,0.72976597,42951.0,42950.0,0.23]
[1642211280533,0.34427613,42952.0,42950.0,0.23]
[1642211284381,0.63178652,42952.0,42950.0,0.23]
[1642211284692,0.42394651,42951.0,42950.0,0.23]
[1642211285083,0.71896575,42951.0,42950.0,0.23]
[1642211286389,0.73896575,42951.0,42950.0,0.23]
[1642211287385,0.44394651,42951.0,42950.0,0.23]
[1642211287931,0.42394651,42951.0,42950.0,0.23]
[1642211288432,0.44394651,42951.0,42950.0,0.23]
[1642211288832,0.442692,42951.0,42950.0,0.23]
[1642211289231,0.0662,42951.0,42950.0,0.23]
[1642211289631,0.0462,42951.0,42950.0,0.23]
[1642211290435,0.34427613,42952.0,42950.0,0.23]
[1642211290436,0.022,42954.0,42950.0,0.3927227]
[1642211291032,0.022,42954.0,42950.0,0.39953438]
[1642211291681,0.33194644,42956.0,42951.0,0.116393]
[1642211291881,0.00604996,42957.0,42951.0,0.116393]
[1642211294480,0.00604996,42957.0,42950.0,0.321]
[1642211295734,0.00604996,42957.0,42950.0,0.23]
[1642211297841,0.06426073,42957.0,42950.0,0.23]
[1642211298141,0.422692,42956.0,42950.0,0.23]
[1642211298943,0.11642877,42955.0,42950.0,0.23]
[1642211299204,0.422692,42954.0,42950.0,0.23]
[1642211300404,0.438692,42954.0,42950.0,0.23]
[1642211302006,0.422692,42954.0,42950.0,0.23]
[1642211302505,0.442692,42954.0,42950.0,0.23]
[1642211303732,0.422692,42954.0,42950.0,0.23]
[1642211304532,0.442692,42954.0,42950.0,0.23]
[1642211305832,0.422692,42954.0,42950.0,0.23]
[1642211306432,0.442692,42954.0,42950.0,0.23]
[1642211306677,0.40891423,42951.0,42950.0,0.23]
[1642211306884,0.45511423,42951.0,42950.0,0.23]
[1642211308484,0.47811423,42951.0,42950.0,0.23]
[1642211309684,0.45511423,42951.0,42950.0,0.23]
[1642211310555,0.0692,42951.0,42950.0,0.23]
[1642211311457,0.023,42951.0,42950.0,0.23]
[1642211311658,0.92761246,42957.0,42950.0,0.23]
[1642211312058,0.34809857,42957.0,42950.0,0.23]
[1642211312358,0.00604996,42957.0,42950.0,0.23]
[1642211312563,0.02,42957.0,42951.0,0.058195]
[1642211312761,0.02,42957.0,42953.0,0.05819091]
[1642211312958,0.02,42957.0,42955.0,0.058191]
[1642211313158,0.54947386,42958.0,42953.0,0.05]
[1642211313358,0.41569988,42956.0,42950.0,0.34761736]
[1642211313658,0.66445313,42956.0,42950.0,0.34761736]
[1642211313859,0.41569988,42956.0,42951.0,0.0581929]
[1642211314059,0.41569988,42956.0,42952.0,0.376492]
[1642211314482,0.41569988,42956.0,42951.0,0.1745719]
[1642211314683,0.41569988,42956.0,42953.0,0.058192]
[1642211314883,0.41569988,42956.0,42953.0,0.116385]
[1642211315284,0.41569988,42956.0,42954.0,0.376492]
[1642211315486,0.6753779,42965.0,42954.0,0.376492]
[1642211315784,0.27749269,42964.0,42953.0,0.111385]
[1642211316184,0.30293241,42961.0,42956.0,0.28268811]
[1642211316486,0.35113243,42963.0,42956.0,0.28268811]
[1642211317384,0.33176368,42962.0,42956.0,0.28268811]
[1642211318030,0.33176368,42962.0,42951.0,0.116381]
[1642211318432,0.33176368,42962.0,42951.0,0.40450855]
[1642211319033,0.33176368,42962.0,42954.0,0.058192]
[1642211319832,0.33176368,42962.0,42956.0,0.25745398]
[1642211320035,0.6753779,42967.0,42957.0,0.25097961]
[1642211320344,0.6753779,42967.0,42963.0,0.00128685]
[1642211320736,0.6753779,42967.0,42958.0,0.31168286]
[1642211320933,0.6753779,42967.0,42957.0,0.80916516]
[1642211321133,0.28682753,42966.0,42963.0,0.34315058]
[1642211321991,0.23328753,42966.0,42960.0,0.116356]
[1642211322192,0.23328753,42966.0,42961.0,0.5]
[1642211322391,0.23328753,42966.0,42962.0,0.29181988]